bitfinex/quotes_ETHUSD_20250328
["timestamp","ask_amount","ask_price","bid_price","bid_amount"]
[1743138782215,0.8083,1930.9,1930.4,5.18018]
[1743138782511,0.27302976,1930.8,1930.1,6.6954]
[1743138782812,3.05163263,1930.8,1930.1,6.6954]
[1743138783012,3.05163263,1930.8,1930.1,6.69548]
[1743138783013,0.22238384,1930.7,1930.1,6.69548]
[1743138783315,0.22238384,1930.7,1930.2,0.669548]
[1743138783672,0.22238384,1930.7,1930.3,0.05179729]
[1743138784387,0.22238384,1930.7,1930.2,5.850338]
[1743138784588,0.22238384,1930.7,1930.3,0.05179729]
[1743138785195,0.22238384,1930.7,1930.2,0.669548]
[1743138785398,0.22238384,1930.7,1930.1,11.87626]
[1743138785694,0.22238384,1930.7,1930.1,6.69538]
[1743138786311,0.22238384,1930.7,1930.1,11.87631]
[1743138786610,0.22238384,1930.7,1930.1,6.69538]
[1743138786812,0.22238384,1930.7,1930.2,5.23246864]
[1743138786981,0.22238384,1930.7,1930.3,0.52324686]
[1743138787183,3.04021919,1930.7,1930.3,0.52324686]
[1743138787414,3.04021919,1930.7,1930.2,5.23237864]
[1743138787718,0.22238384,1930.7,1930.2,5.23237864]
[1743138788118,3.67776798,1930.9,1930.2,5.23237864]
[1743138788297,0.22228518,1930.6,1930.1,1.5145]
[1743138788504,3.67776798,1930.9,1930.1,7.36508]
[1743138788717,0.22228518,1930.5,1930.1,2.18406]
[1743138788890,3.67776798,1930.9,1930.1,7.36493]
[1743138789204,0.22228518,1930.8,1930.2,5.1808]
[1743138789406,0.05163263,1930.7,1930.1,7.36493]
[1743138789652,0.05163263,1930.7,1930.2,0.736493]
[1743138789770,0.22228518,1930.6,1930.2,0.736493]
[1743138789976,3.05163263,1930.8,1930.1,1.5145]
[1743138790218,3.84842053,1930.7,1929.9,37.175977]
[1743138790517,0.05163263,1930.6,1929.9,37.175977]
[1743138790896,3.84842053,1930.5,1929.9,30.409167]
[1743138791073,0.8083,1930.0,1929.4,1.5853]
[1743138791305,0.05163263,1929.9,1929.2,40.25768]
[1743138791518,0.27544764,1929.9,1929.3,4.025768]
[1743138791688,0.27544764,1929.9,1929.3,9.208888]
[1743138791886,0.22381501,1929.9,1929.4,0.05182017]
[1743138792138,0.22381501,1929.9,1929.4,5.23474017]
[1743138792323,0.22381501,1929.9,1929.4,1.09053181]
[1743138792472,0.22381501,1929.9,1929.4,1.03871164]
[1743138792678,0.05163263,1929.8,1929.4,1.03871164]
[1743138792978,0.22381501,1929.7,1929.4,1.03871164]
[1743138793198,0.05163263,1929.9,1929.4,1.03871164]
[1743138793392,0.22381501,1929.8,1929.4,1.03871164]
[1743138793581,2.86946798,1929.9,1929.4,1.03871164]
[1743138793786,0.22381501,1929.8,1929.4,1.5451596]
[1743138793987,2.86946798,1929.9,1929.4,1.5451596]
[1743138794188,0.22381501,1929.8,1929.4,1.5451596]
[1743138794405,2.86946798,1929.9,1929.4,6.7280596]
[1743138794575,0.22381501,1929.8,1929.5,0.05182099]
[1743138794780,0.8083,1929.7,1929.4,1.5451596]
[1743138794976,0.22381501,1929.6,1929.4,0.50644796]
[1743138795201,0.8083,1929.7,1929.4,0.50644796]
[1743138795412,0.22381501,1929.6,1929.4,0.50644796]
[1743138795576,0.8083,1929.7,1929.4,0.50644796]
[1743138795775,0.22040958,1929.6,1929.4,0.50644796]
[1743138795983,0.8083,1929.7,1929.4,0.50644796]
[1743138796314,0.22026146,1929.6,1929.4,0.50644796]
[1743138796617,0.8083,1929.7,1929.4,0.50644796]
[1743138796921,0.22026146,1929.6,1929.4,0.50644796]
[1743138797162,0.22026146,1929.6,1929.3,4.025768]
[1743138797431,0.22026146,1929.6,1929.2,29.891]
[1743138797432,0.8083,1929.5,1929.2,29.891]
[1743138797726,0.22036021,1929.4,1929.2,29.891]
[1743138797933,0.27199284,1929.4,1929.2,29.891]
[1743138798904,0.22036021,1929.4,1929.2,29.891]
[1743138799838,0.22036021,1929.4,1929.2,32.8801]
[1743138801499,0.22036021,1929.4,1929.2,29.891]
[1743138802098,0.05163263,1929.3,1929.2,29.891]
[1743138802396,0.27140033,1929.3,1929.2,29.891]
[1743138803327,0.2197677,1929.3,1929.2,29.891]
[1743138803635,0.05163263,1929.4,1929.2,29.891]
[1743138803847,0.21463395,1929.3,1929.2,29.891]
[1743138804141,0.05163263,1929.4,1929.2,29.891]
[1743138804311,0.21463395,1929.3,1929.2,29.891]
[1743138804635,0.05163263,1929.4,1929.2,29.891]
[1743138804869,2.76286213,1929.3,1929.2,29.891]
[1743138805260,0.8083,1929.2,1928.7,5.1848]
[1743138805439,0.8083,1928.8,1928.4,29.901]
[1743138805643,2.54822818,1928.7,1928.4,29.901]
[1743138805878,0.21325116,1928.6,1928.4,29.901]
[1743138806031,2.54822818,1928.7,1928.4,29.901]
[1743138806369,0.21325116,1928.6,1928.4,29.901]
[1743138806573,0.21325116,1928.6,1928.4,38.07659]
[1743138806781,7.8253,1929.0,1928.4,38.07659]
[1743138807269,0.21325116,1928.9,1928.4,38.07659]
[1743138807454,3.03710075,1928.9,1928.4,32.8911]
[1743138807978,3.08873338,1928.9,1928.4,32.8911]
[1743138808132,3.08873338,1928.9,1928.5,3.34095836]
[1743138808640,3.08873338,1928.9,1928.5,3.28911]
[1743138808841,3.08873338,1928.9,1928.5,3.34095835]
[1743138809038,0.21325116,1928.9,1928.8,5.18457]
[1743138809243,0.8083,1929.3,1928.8,5.703027]
[1743138809438,0.19040925,1929.2,1928.8,0.518457]
[1743138809639,0.19040925,1929.2,1928.8,0.57028949]
[1743138809840,2.82384959,1929.0,1928.5,3.28911]
[1743138810155,2.82384959,1929.0,1928.5,3.34095728]
[1743138810156,0.24209139,1928.9,1928.5,3.34095728]
[1743138810340,0.19045876,1928.9,1928.5,3.34095728]
[1743138810738,0.99875876,1928.9,1928.5,3.34095728]
[1743138811044,0.19045876,1928.9,1928.8,5.18457]
[1743138811251,0.05163263,1929.5,1929.0,5.18397]
[1743138811427,0.17492026,1929.4,1929.1,0.05183218]
[1743138811824,2.99876985,1929.4,1928.8,2.689432]
[1743138812032,3.63214959,1929.2,1928.6,6.76045]
[1743138812260,0.17680432,1929.1,1928.7,0.05184214]
[1743138812562,0.8083,1929.4,1928.9,5.18417]
[1743138812772,0.8083,1929.4,1929.0,0.518417]
[1743138812952,0.17675475,1929.3,1929.0,0.518417]
[1743138813329,0.8083,1929.4,1929.1,0.05183219]
[1743138813533,0.8083,1929.4,1929.0,5.702437]
[1743138813534,3.0,1929.5,1929.0,7.315337]
[1743138813733,3.0,1929.5,1929.0,2.131317]
[1743138814257,0.17675475,1929.4,1929.0,2.131317]
[1743138814658,0.17675475,1929.4,1929.0,1.6129]
[1743138814956,0.17675475,1929.4,1928.8,5.18438]
[1743138815170,0.17675475,1929.4,1928.8,5.18435]
[1743138815380,0.17675475,1929.4,1928.9,5.18429]
[1743138816265,0.17675475,1929.4,1928.8,10.36875]
[1743138816562,0.17675475,1929.4,1928.9,6.221105]
[1743138817460,0.17675475,1929.4,1929.0,0.05183083]
[1743138818064,0.17675475,1929.4,1929.0,5.23585083]
[1743138818867,0.17675475,1929.4,1929.2,10.36666]
[1743138819031,0.85993263,1930.0,1929.3,5.23504466]
[1743138819367,0.17739914,1929.9,1929.4,5.70630447]
[1743138820038,0.17739914,1929.9,1929.6,5.18227]
[1743138820238,0.17739914,1929.9,1929.7,5.23392678]
[1743138820440,0.8083,1930.3,1929.7,5.23392678]
[1743138820745,0.18161263,1930.2,1929.8,0.52339268]
[1743138821231,2.82384959,1930.1,1929.4,7.30550447]
[1743138821436,0.8083,1929.9,1929.4,2.12260447]
[1743138821637,0.8083,1929.9,1929.4,12.48817447]
[1743138821963,0.18260364,1929.8,1929.5,1.30063559]
[1743138822465,3.63214959,1930.1,1929.5,6.48321559]
[1743138822636,0.18260364,1930.0,1929.5,11.66570559]
[1743138822832,0.18260364,1930.0,1929.6,5.18235]
[1743138823638,0.18260364,1930.0,1929.5,6.43130745]
[1743138823957,0.18260364,1930.0,1929.6,0.64313075]
[1743138825862,3.63214959,1929.9,1929.2,5.18337]
[1743138826063,0.23418672,1929.8,1929.3,5.18315]
[1743138826266,0.18255409,1929.8,1929.3,5.18315]
[1743138826434,0.18255409,1929.8,1929.2,5.18337]
[1743138826637,2.82384959,1929.5,1929.0,35.09177]
[1743138826876,2.73042,1929.4,1929.0,35.09177]
[1743138827077,2.73042,1929.4,1929.1,0.05182959]
[1743138827234,2.73042,1929.4,1929.1,4.03275196]
[1743138827668,2.73042,1929.4,1929.1,4.08458155]
[1743138829373,0.8083,1929.3,1929.0,29.908]
[1743138829573,2.54816319,1929.2,1929.0,29.908]
[1743138829991,0.18136485,1929.1,1929.0,29.908]
[1743138830887,0.18062142,1929.1,1929.0,29.908]
[1743138831292,2.54816319,1929.2,1929.0,29.908]
[1743138831476,0.18047272,1929.1,1929.0,29.908]
[1743138831659,2.54816319,1929.2,1929.0,33.0024875]
[1743138831859,0.18047272,1929.1,1929.0,33.0024875]
[1743138832048,2.54816319,1929.2,1929.0,33.0024875]
[1743138832375,0.18047272,1929.1,1928.4,5.1855]
[1743138832542,2.54816319,1928.8,1928.3,29.903]
[1743138832743,0.05163263,1928.7,1928.3,29.903]
[1743138832972,2.54816319,1928.6,1928.3,33.73697616]
[1743138833166,0.17829179,1928.6,1928.4,0.05185163]
[1743138833365,2.54816319,1928.8,1928.4,0.05185163]
[1743138833873,0.17710189,1928.7,1928.3,38.92283616]
[1743138834055,0.17710189,1928.7,1928.3,33.73697616]
[1743138834260,2.54816319,1928.6,1928.3,33.73697616]
[1743138834641,0.17710189,1928.5,1928.3,33.73697616]
[1743138834844,2.82454616,1928.8,1928.4,0.05185043]
[1743138835049,0.17710189,1928.7,1928.4,0.05185043]
[1743138835379,0.17710189,1928.7,1928.4,3.43073309]
[1743138836065,0.8083,1928.9,1928.4,8.61625309]
[1743138836377,0.38473122,1929.1,1928.4,8.61625309]
[1743138836378,10.62184616,1929.1,1928.6,5.18509]
[1743138836544,10.62184616,1929.1,1928.5,5.18525]
[1743138836744,0.17596129,1929.0,1928.6,0.518525]
[1743138836963,0.22759392,1929.0,1928.4,8.56447266]
[1743138837361,0.22759392,1929.0,1928.4,3.37888266]
[1743138837580,2.82454616,1928.9,1928.4,3.37888266]
[1743138837878,2.82454616,1928.9,1928.5,0.33788827]
[1743138838187,0.05163263,1929.0,1928.5,0.33788827]
[1743138838188,0.17596129,1928.8,1928.5,5.57507538]
[1743138838371,0.17596129,1928.8,1928.6,5.1851]
[1743138838681,0.17596129,1928.7,1928.5,5.52313827]
[1743138838884,3.68447879,1929.1,1928.5,0.33788827]
[1743138839199,0.17596129,1929.0,1928.4,3.37888266]
[1743138839500,0.8083,1928.8,1928.4,3.43072648]
[1743138839793,0.17606048,1928.7,1928.4,3.43072648]
[1743138840570,2.82454616,1928.7,1928.4,3.37888266]
[1743138840754,2.82454616,1928.7,1928.3,29.903]
[1743138840957,0.17596129,1928.6,1928.3,29.903]
[1743138841154,0.17596129,1928.6,1928.4,0.05185016]
[1743138841399,0.8083,1928.8,1928.4,0.05185016]
[1743138841687,0.17596129,1928.5,1928.4,0.05185016]
[1743138841865,0.85993263,1928.8,1928.4,3.56592418]
[1743138842069,0.17596129,1928.7,1928.4,3.56592418]
[1743138842463,0.17596129,1928.7,1928.4,3.51407402]
[1743138842859,0.17596129,1928.7,1928.3,29.903]
[1743138845495,0.17596129,1928.7,1928.3,35.08883]
[1743138845886,0.17596129,1928.7,1928.3,29.903]
[1743138846609,0.17596129,1928.7,1928.2,5.18616]
[1743138846765,0.17596129,1928.7,1928.3,0.05185202]
[1743138847485,0.17596129,1928.7,1928.3,0.57565322]
[1743138848597,0.17596129,1928.7,1928.3,5.76155322]
[1743138849901,0.17596129,1928.7,1928.3,0.57565322]
[1743138850273,3.00050745,1928.7,1928.3,0.57565322]
[1743138850566,0.05163263,1928.6,1928.1,12.0184]
[1743138850772,0.05163263,1928.6,1928.1,12.01847]
[1743138850967,0.05163263,1928.6,1928.1,6.83214]
[1743138851172,0.05163263,1928.6,1928.1,12.01848]
[1743138851374,0.17298596,1928.5,1928.2,5.18617]
[1743138851594,0.05163263,1928.6,1928.2,6.388001]
[1743138851970,0.17298596,1928.5,1928.2,6.388001]
[1743138852319,2.82454616,1928.3,1928.1,0.05]
[1743138852470,0.22347772,1928.2,1928.1,0.05]
[1743138853001,0.17184509,1928.2,1928.1,0.05]
[1743138853512,0.8083,1928.4,1928.1,0.05]
[1743138853692,0.22347772,1928.3,1928.1,0.05]
[1743138854089,3.04802388,1928.3,1928.1,0.05]
[1743138856981,2.60285518,1928.2,1928.1,0.05]
[1743138857402,2.7725666,1928.2,1928.1,0.05]
[1743138857771,2.72093397,1928.2,1928.1,0.05]
[1743138858872,0.16971142,1928.2,1928.1,0.05]
[1743138859074,0.8083,1928.6,1928.1,5.23645]
[1743138859275,2.55122255,1928.3,1928.1,0.05]
[1743138859503,0.15295957,1928.2,1928.1,0.05]
[1743138860201,0.15295957,1928.2,1928.1,5.23645]
[1743138860575,2.55122255,1928.5,1928.1,5.23645]
[1743138860774,0.15295957,1928.2,1928.1,6.27874]
[1743138860976,2.55122255,1928.5,1928.1,6.27874]
[1743138861177,0.15295957,1928.2,1928.1,6.27874]
[1743138861398,2.55122255,1928.5,1928.1,11.46501]
[1743138861601,0.15330748,1928.2,1928.1,6.27856]
[1743138861771,2.55122255,1928.5,1928.1,6.27853]
[1743138861973,2.55122255,1928.5,1928.2,2.151053]
[1743138862616,2.55122255,1928.5,1928.3,0.05185393]
[1743138862922,2.55122255,1928.5,1928.2,5.814013]
[1743138863103,2.55122255,1928.5,1928.2,5.813893]
[1743138863404,0.85993263,1928.8,1928.4,5.18564]
[1743138863786,2.55122255,1928.7,1928.3,7.2745193]
[1743138863986,2.55122255,1928.7,1928.3,2.0887893]
[1743138864185,0.8083,1928.4,1928.1,0.05]
[1743138864407,2.55122255,1928.5,1928.1,0.05]
[1743138864624,2.55122255,1928.5,1928.1,5.2364]
[1743138864911,2.55122255,1928.5,1928.2,0.52364]
[1743138865212,2.55122255,1928.5,1928.2,5.70979]
[1743138865411,2.55122255,1928.5,1928.2,5.76164478]
[1743138865730,0.8083,1928.6,1928.2,5.70979]
[1743138866083,0.85993263,1928.6,1928.2,5.70979]
[1743138866283,2.55122255,1928.5,1928.2,0.52364]
[1743138866510,6.963,1929.4,1928.5,6.82076]
[1743138866704,2.55122255,1929.0,1928.6,0.05184536]
[1743138866904,0.8083,1929.2,1928.6,5.23670536]
[1743138867104,3.35952255,1929.2,1928.7,5.18462]
[1743138867413,0.15385416,1929.1,1928.8,0.57030168]
[1743138868286,0.15385416,1929.1,1928.8,5.75485168]
[1743138868486,0.15385416,1929.1,1928.8,0.57030168]
[1743138868698,0.15385416,1929.1,1928.6,5.18505]
[1743138868899,2.55122255,1929.0,1928.5,2.317476]
[1743138869113,0.15633828,1928.9,1928.5,7.502826]
[1743138869819,0.15633828,1928.9,1928.5,12.687986]
[1743138871416,0.15633828,1928.9,1928.5,7.502636]
[1743138871717,0.15633828,1928.9,1928.6,0.7502636]
[1743138872017,0.8083,1928.8,1928.3,6.80301]
[1743138872220,0.96732167,1928.8,1928.3,11.98872]
[1743138872390,0.96732167,1928.8,1928.4,5.18561]
[1743138873008,0.96732167,1928.8,1928.3,6.80301]
[1743138873219,0.96732167,1928.8,1928.4,5.18562]
[1743138873437,0.96732167,1928.8,1928.5,0.518562]
[1743138873716,0.15902167,1928.8,1928.6,5.23683863]
[1743138873923,0.05163263,1929.0,1928.6,5.23683863]
[1743138874121,0.05163263,1929.0,1928.6,0.05184863]
[1743138874310,0.15902167,1928.9,1928.5,5.703682]
[1743138874628,0.15902167,1928.9,1928.6,0.5703682]
[1743138875519,0.15902167,1928.9,1928.6,0.62221305]
[1743138876044,0.15902167,1928.9,1928.6,5.80728305]
[1743138876318,3.41115518,1929.2,1928.7,6.81803]
[1743138876716,3.41115518,1929.2,1928.7,6.86987242]
[1743138876717,0.15936937,1929.1,1928.7,6.86987242]
[1743138876923,0.15936937,1929.1,1928.7,8.13240348]
[1743138877120,0.15936937,1929.1,1928.9,5.18422]
[1743138877325,0.15936937,1929.1,1928.9,5.23605533]
[1743138877521,0.15936937,1929.0,1928.9,5.23595533]
[1743138877692,3.41115518,1929.4,1928.9,5.23595533]
[1743138878024,2.55122255,1929.2,1928.7,7.94983106]
[1743138878194,2.60285518,1929.2,1928.7,7.94983106]
[1743138878395,2.55122255,1929.2,1928.8,5.23637837]
[1743138878721,0.15936937,1929.1,1928.8,5.23616837]
[1743138879027,2.55122255,1929.3,1928.9,2.02611684]
[1743138879319,0.15936937,1929.2,1928.9,1.5025]
[1743138879905,0.15936937,1929.2,1929.0,0.05183437]
[1743138880099,0.211002,1929.2,1928.7,8.04654106]
[1743138880303,0.211002,1929.2,1928.7,13.23120106]
[1743138880503,2.60285518,1929.3,1928.8,5.18455]
[1743138880812,0.16001503,1929.2,1928.8,1.32309411]
[1743138881930,0.8083,1929.1,1928.7,1.5992]
[1743138882315,0.16001503,1929.0,1928.7,6.7839]
[1743138882516,0.8083,1929.1,1928.7,6.7839]
[1743138882720,0.16001503,1929.0,1928.7,6.7839]
[1743138882924,0.8083,1929.1,1928.8,0.67839]
[1743138883120,0.16001503,1929.0,1928.8,0.67839]
[1743138883553,3.35952255,1929.3,1928.8,5.86283]
[1743138883727,0.21164766,1929.2,1928.8,5.86283]
[1743138884438,0.21164766,1929.2,1928.8,0.67839]
[1743138884908,0.21164766,1929.2,1928.8,5.86294]
[1743138885109,0.21164766,1929.2,1928.9,0.586294]
[1743138886926,0.21164766,1929.2,1928.8,0.67839]
[1743138887115,0.21164766,1929.2,1928.7,1.5992]
[1743138887319,0.21164766,1929.2,1928.7,6.784]
[1743138887843,0.21164766,1929.2,1928.7,6.78403]
[1743138888140,2.55122255,1929.1,1928.6,0.5703682]
[1743138888351,0.21278999,1929.0,1928.6,5.7554682]
[1743138888535,0.05163263,1929.0,1928.6,5.7554682]
[1743138888818,2.55122255,1929.1,1928.6,5.80731309]
[1743138889219,0.16115736,1929.0,1928.6,5.80731309]
[1743138889621,0.21278999,1929.0,1928.6,5.80731309]
[1743138889842,0.21278999,1929.0,1928.6,5.7554682]
[1743138890140,0.16115736,1929.0,1928.6,5.80731309]
[1743138890639,0.16115736,1929.0,1928.7,0.58073131]
[1743138890839,0.16115736,1929.0,1928.7,5.18462]
[1743138891011,0.05163263,1929.2,1928.7,5.18462]
[1743138891216,0.05163263,1929.2,1928.8,5.18454]
[1743138891422,0.16115736,1929.1,1928.8,5.18454]
[1743138892016,0.85993263,1929.3,1928.8,5.23637817]
[1743138892217,0.16115736,1929.0,1928.8,5.23637817]
[1743138892413,0.85993263,1929.3,1928.9,2.13513782]
[1743138892619,0.85993263,1929.3,1928.9,1.6115]
[1743138892822,0.16115736,1929.2,1928.9,1.6115]
[1743138893165,0.16115736,1929.2,1929.0,5.18387]
[1743138893459,0.16115736,1929.2,1929.0,5.23570816]
[1743138893744,0.8083,1929.5,1929.0,10.41962816]
[1743138894045,0.16145533,1929.4,1929.1,5.18363]
[1743138894619,0.8083,1929.6,1929.1,5.18363]
[1743138894828,0.16145533,1929.3,1929.1,5.18363]
[1743138895019,0.8083,1929.6,1929.1,10.36719]
[1743138895219,0.8083,1929.6,1929.1,10.36712]
[1743138895433,0.16145533,1929.5,1929.2,1.036712]
[1743138896343,2.76431051,1929.5,1928.9,16.1115]
[1743138896537,2.60285518,1929.5,1928.9,21.29563]
[1743138896737,0.16145533,1929.4,1928.9,11.97977]
[1743138897212,0.16145533,1929.4,1928.9,6.79563]
[1743138897419,0.8083,1929.2,1928.7,6.78551]
[1743138897613,0.8083,1929.2,1928.7,1.6009]
[1743138897820,2.7655519,1929.1,1928.6,5.7554182]
[1743138898215,2.7655519,1929.1,1928.6,5.7554582]
[1743138898438,2.7655519,1929.1,1928.7,0.57554582]
[1743138899335,0.21432935,1929.1,1928.7,5.76037582]
[1743138899537,0.16269672,1929.1,1928.8,0.05184382]
[1743138899731,0.16269672,1929.1,1928.8,6.81769382]
[1743138899924,0.16269672,1929.1,1928.9,5.86604938]
[1743138900141,2.60285518,1929.3,1928.9,0.73360622]
[1743138900348,0.16140554,1929.2,1928.9,0.68176938]
[1743138900653,0.16140554,1929.2,1928.9,5.91788619]
[1743138901154,0.16140554,1929.2,1928.9,0.73360619]
[1743138901359,2.60285518,1929.1,1928.7,0.57554582]
[1743138901545,0.16210083,1929.0,1928.6,2.1417682]
[1743138901859,0.16210083,1929.0,1928.6,7.3268682]
[1743138902632,0.16210083,1929.0,1928.6,0.5703682]
[1743138902845,2.55122255,1928.7,1928.4,1.03166235]
[1743138903647,0.16125653,1928.6,1928.4,1.03166235]
[1743138903852,0.85993263,1928.8,1928.4,1.03166235]
[1743138904150,0.16026305,1928.7,1928.4,1.03166235]
[1743138904356,3.85993263,1929.1,1928.5,5.23703138]
[1743138904656,0.16026305,1929.0,1928.6,5.185]
[1743138905053,0.16026305,1929.0,1928.7,5.18482]
[1743138905234,0.16026305,1929.0,1928.6,6.7792]
[1743138905435,0.09591422,1929.0,1928.7,0.67792]
[1743138905636,0.15490065,1929.0,1928.7,0.67792]
[1743138906344,0.20653328,1929.0,1928.7,0.67792]
[1743138906541,0.20653328,1929.0,1928.6,1.5942]
[1743138906947,0.20653328,1929.0,1928.6,16.0942]
[1743138907152,0.20653328,1929.0,1928.6,21.2793]
[1743138907546,0.20653328,1929.0,1928.6,21.27911]
[1743138907749,0.20653328,1929.0,1928.6,16.0942]
[1743138907951,0.20653328,1929.0,1928.6,16.627952]
[1743138908122,2.55122255,1928.9,1928.6,2.127952]
[1743138908327,3.35952255,1928.7,1928.4,1.03166235]
[1743138908724,0.15395728,1928.6,1928.3,29.912]
[1743138908931,3.35952255,1928.7,1928.3,29.912]
[1743138909128,0.15395728,1928.6,1928.3,29.912]
[1743138909324,3.35952255,1928.7,1928.3,29.912]
[1743138909526,0.15395728,1928.6,1928.3,34.95626341]
[1743138909730,3.35952255,1928.7,1928.3,34.95626341]
[1743138910260,2.55122255,1928.5,1928.3,29.912]
[1743138910671,1.01388991,1928.4,1928.1,0.05]
[1743138910959,2.55122255,1928.3,1928.1,0.05]
[1743138911157,0.15276502,1928.2,1928.1,0.05]
[1743138911549,2.55122255,1928.3,1928.1,0.05]
[1743138911862,0.15276502,1928.2,1928.1,0.05]
[1743138913241,2.60285518,1928.3,1928.1,0.05]
[1743138913569,0.15276502,1928.2,1928.1,0.05]
[1743138913862,0.20439765,1928.2,1928.1,0.05]
[1743138914064,0.15276502,1928.2,1928.1,0.05]
[1743138914871,0.20439765,1928.2,1928.1,0.05]
[1743138915162,1.01269765,1928.2,1928.1,0.05]
[1743138915364,4.01269765,1928.2,1928.1,0.05]
[1743138918434,6.5639202,1928.2,1928.1,0.05]
[1743138918632,6.5639202,1928.2,1927.7,1.06001963]
[1743138918633,0.8083,1928.1,1927.7,1.06001963]
[1743138918837,3.35952255,1927.8,1927.7,1.06001963]
[1743138919061,3.41115518,1927.8,1927.7,1.06001963]
[1743138919563,3.5559685,1927.8,1927.7,1.06001963]
[1743138919768,3.5559685,1927.8,1927.1,1.5681]
[1743138919967,2.55122255,1927.5,1927.1,2.762763]
[1743138920166,2.55122255,1927.5,1927.1,7.951803]
[1743138920346,2.55122255,1927.5,1927.2,5.18883]
[1743138920544,0.14481332,1927.4,1927.2,5.18883]
[1743138920736,0.14481332,1927.4,1927.1,7.951803]
[1743138920936,0.19644595,1927.4,1927.1,1.5681]
[1743138921162,0.14481332,1927.4,1927.1,1.5681]
[1743138923166,12.09799,1927.9,1927.1,1.5681]
[1743138923167,1.03541837,1927.9,1927.3,5.1886]
[1743138923367,2.55122255,1928.3,1927.9,5.18692]
[1743138923576,2.55122255,1928.8,1927.7,1.6075]
[1743138923577,0.8083,1928.8,1928.4,5.18554]
[1743138923769,3.35952255,1928.8,1928.4,5.18554]
[1743138923970,0.05163263,1929.3,1928.3,5.18591]
[1743138923971,2.55122255,1929.0,1928.6,5.18489]
[1743138924171,2.55122255,1929.0,1928.5,16.1075]
[1743138924391,2.55122255,1928.8,1928.6,5.18495]
[1743138924895,2.55122255,1928.8,1928.5,16.1075]
[1743138925103,2.55122255,1928.8,1928.2,5.18615]
[1743138925250,2.55122255,1928.6,1928.2,11.99533]
[1743138925450,2.55122255,1928.6,1928.3,20.93703453]
[1743138925661,2.55122255,1928.6,1928.3,20.885183]
[1743138926099,2.55122255,1928.6,1928.3,26.070893]
[1743138926575,2.55122255,1928.6,1928.3,20.885183]
[1743138926952,2.82443681,1928.9,1928.3,6.385183]
[1743138927147,0.05163263,1928.8,1928.4,0.6385183]
[1743138927349,2.82443681,1928.7,1928.4,0.6385183]
[1743138927653,2.82443681,1928.7,1928.2,6.80932]
[1743138928184,0.8083,1928.6,1928.2,10.37208]
[1743138928362,2.82443681,1928.7,1928.2,10.37208]
[1743138928563,2.82443681,1928.7,1928.2,5.18596]
[1743138928763,2.82443681,1928.7,1928.3,5.18581]
[1743138928967,2.82443681,1928.7,1928.4,0.518581]
[1743138929167,0.8083,1928.8,1928.4,0.518581]
[1743138929377,0.05163263,1928.7,1928.4,0.518581]
[1743138929667,0.05163263,1928.7,1928.2,10.37192]
[1743138929861,4.04331915,1929.1,1928.5,5.18516]
[1743138929862,0.05163263,1929.0,1928.5,5.18516]
[1743138930063,1.04331915,1929.1,1928.7,5.18467]
[1743138930262,1.04331915,1929.1,1928.8,5.23627105]
[1743138930568,0.1234136,1929.0,1928.8,11.92788105]
[1743138930769,0.1234136,1929.0,1928.9,6.37708811]
[1743138930976,9.72443681,1929.7,1929.1,5.18372]
[1743138931181,3.30885318,1929.6,1929.0,5.18398]
[1743138931491,2.82443681,1929.5,1929.0,6.34008681]
[1743138931858,0.2639389,1929.4,1929.0,6.34008681]
[1743138932059,0.2639389,1929.4,1929.1,0.05183182]
[1743138932261,2.87606944,1929.3,1928.8,1.5072]
[1743138932485,3.68436944,1929.3,1928.8,1.187651]
[1743138932691,0.2639389,1929.2,1928.7,5.18464]
[1743138932891,0.2639389,1929.2,1928.8,5.18455]
[1743138933073,0.2639389,1929.2,1928.8,10.42077857]
[1743138933273,0.2639389,1929.2,1928.9,5.18424]
[1743138933667,0.2639389,1929.2,1929.0,5.18397]
[1743138933870,2.87606944,1929.5,1929.0,6.27262757]
[1743138934087,0.26533115,1929.1,1929.0,7.93402757]
[1743138934284,2.87606944,1929.5,1929.0,7.93402757]
[1743138934590,2.87606944,1929.5,1929.0,6.84537]
[1743138934777,0.26533115,1929.4,1929.0,6.84537]
[1743138934961,0.26533115,1929.4,1929.0,6.89720285]
[1743138935302,0.26533115,1929.4,1929.0,6.84537]
[1743138935668,0.26533115,1929.4,1929.0,6.89720288]
[1743138935864,0.26533115,1929.4,1929.2,5.18333]
[1743138936177,3.68273681,1929.9,1929.5,5.18258]
[1743138936377,0.05163263,1929.8,1929.5,5.18258]
[1743138936570,0.05163263,1929.8,1929.4,6.7747]
[1743138937761,0.05163263,1929.8,1929.4,1.592]
[1743138937982,2.82443681,1929.7,1929.2,1.5553]
[1743138938188,0.85993263,1929.6,1929.1,0.68972029]
[1743138938567,0.85993263,1929.6,1929.1,5.87332029]
[1743138938892,0.85993263,1929.6,1929.2,0.58733203]
[1743138939092,0.85993263,1929.6,1929.2,5.77080203]
[1743138939292,0.85993263,1929.6,1929.2,5.8226317]
[1743138939594,0.85993263,1929.6,1929.2,0.58733203]
[1743138940281,0.05163263,1929.6,1929.3,1.6446]
[1743138940462,0.90993263,1929.9,1929.4,5.23458361]
[1743138940666,0.90993263,1929.9,1929.5,0.52345836]
[1743138942900,0.05,1929.9,1929.7,6.68353]
[1743138943202,0.05,1929.9,1929.8,5.23369368]
[1743138943415,0.05,1929.9,1929.8,5.18188]
[1743138943971,0.27765073,1929.9,1929.8,5.18188]
[1743138944177,0.27765073,1929.9,1929.8,6.368421]
[1743138944395,0.27765073,1929.9,1929.8,6.42023095]
[1743138944577,0.05,1929.9,1929.8,6.368421]
[1743138944971,0.05,1929.9,1929.8,6.42023034]
[1743138945178,0.05,1929.9,1929.8,6.368421]
[1743138945398,0.05,1929.9,1929.8,6.42023033]
[1743138945695,0.05,1929.9,1929.8,6.42023036]
[1743138946085,0.05,1929.9,1929.8,8.03083036]
[1743138946407,0.05,1929.9,1929.8,11.58083036]
[1743138946572,0.05,1929.9,1929.8,11.529021]
[1743138946779,0.05,1929.9,1929.8,10.979021]
[1743138947180,0.05,1929.9,1929.8,11.529021]
[1743138947922,0.05,1929.9,1929.8,10.979021]
[1743138948415,0.05,1929.9,1929.8,11.529021]
[1743138949074,0.05,1929.9,1929.8,10.979021]
[1743138950015,0.05,1929.9,1929.8,1.186541]
[1743138950224,0.28443762,1929.9,1929.6,6.80714]
[1743138950368,0.05,1929.9,1929.7,5.18212]